Cogmind - Beta 13 @@@ ROGUE MODE // 2024.03.24 @ 15:21:18 Player: Oldman Pu Result: Self-destructed Performance ------------- Evolutions (0) 0 Regions Visited (4) 800 Robots Destroyed (13) 65 Value Destroyed (234) 234 Prototype IDs (6) 120 Alien Tech Used (0) 0 Bonus (300) 300 TOTAL SCORE: 1519 Bonus ------- Aligned with FarCom 300 Cogmind --------- Core Integrity 68/250 Matter 297/300 Energy 265/265 System Corruption 1% Temperature Warning (353) Movement Core (3550) Ox70 Location -9/Mines Parts ------- > --- POWER (1) -------- Improved Ion Engine > --- PROPULSION (2) --- (None) > --- UTILITY (2) ------ Humpback > --- WEAPON (2) ------- Improved Light Cannon > --- INVENTORY (35) --- Light Treads Wheel Wheel Compact Wheel Compact Wheel Heat Sink Improved Heat Sink Improved Heat Sink Improved Heat Sink Improved Heat Sink Improved Heat Sink Core Shielding Propulsion Shielding Light Armor Plating Medium Armor Plating Hardened Light Armor Plating Medium Laser Medium Laser Particle Gun Beamcaster Beam Cannon Beam Cannon Guided Plasma Cannon XL Autogun Array Peak State ------------ > --- POWER ------------ Ion Engine > --- PROPULSION ------- Compact Wheel Compact Wheel > --- UTILITY ---------- Large Storage Unit 0b10 Alert Chip > --- WEAPON ----------- Medium Laser Medium Laser > --- INVENTORY -------- Ion Engine Compact Wheel Compact Wheel Improved Heat Sink Improved Heat Sink Medium Laser Particle Gun Beam Cannon Beam Cannon Guided Plasma Cannon XL Autogun Array Improved Light Cannon [Rating: 18] Favorites ----------- Power Ion Engine Engine Ion Engine Propulsion Compact Wheel Wheel Compact Wheel Utility Light Armor Plating Device Improved Heat Sink Storage Large Storage Unit Processor 0b10 Alert Chip Protection Light Armor Plating Weapon Medium Laser Energy Gun Medium Laser Energy Cannon Guided Plasma Cannon Ballistic Cannon Improved Light Cannon Build | -11 -10 -10 -10 -9 ------- Run | Yrd Mat Min Exi Min Slots Evolved . | . . . . . Power . | . . . . . Propulsion . | . . . . . Utility . | . . . . . Weapon . | . . . . . Parts Attached 22 | 6 7 . 6 3 Power 3 | 1 1 . . 1 Engine 3 | 1 1 . . 1 Core . | . . . . . Reactor . | . . . . . Propulsion 4 | 2 1 . 1 . Treads . | . . . . . Leg . | . . . . . Wheel 4 | 2 1 . 1 . Hover . | . . . . . Flight . | . . . . . Utility 7 | 1 3 . 2 1 Device 1 | . . . 1 . Storage 4 | 1 2 . . 1 Processor 1 | . . . 1 . Hackware . | . . . . . Protection 1 | . 1 . . . Artifact . | . . . . . Weapon 8 | 2 2 . 3 1 Energy Gun 6 | 2 2 . 2 . Energy Cannon 1 | . . . 1 . Ballistic Gun . | . . . . . Ballistic Cannon 1 | . . . . 1 Launcher . | . . . . . Special Weapon . | . . . . . Impact Weapon . | . . . . . Slashing Weapon . | . . . . . Piercing Weapon . | . . . . . Special Melee Weapon . | . . . . . Unidentified Prototypes 2 | . . . 2 . Parts Lost 3 | . . . . 3 Power . | . . . . . Propulsion 2 | . . . . 2 Utility . | . . . . . Weapon 1 | . . . . 1 Highest Loss Streak 3 | . . . . 3 To Critical Strikes . | . . . . . Average Slot Usage (%) 98 | . 99 100 99 87 Engine 14 | . 14 14 14 14 Wheel 28 | . 28 28 28 28 Storage 14 | . 14 14 14 14 Processor 2 | . . . 8 . Protection 9 | . 13 14 4 . Energy Gun 27 | . 28 28 27 28 Naked Turns . | . . . . . Heaviest Build 211 | 13 32 32 32 211 Greatest Support 32 | 3 32 32 32 32 Greatest Overweight (x) 6 | 4 1 . . 6 Average Overweight (x) . | 2 . . . 4 Largest Inventory Capacity 35 | 8 15 15 15 35 Average Capacity 14 | 7 10 15 15 31 Most Carried 27 | . 10 13 15 27 Average Carried 11 | . 7 11 14 19 Final Capacity 35 | 8 15 15 15 35 Final Carried 27 | . 10 13 15 27 Class Distribution -------------------- 88% | Mutant 11% | Hauler-Mutant Dominant Class ---------------- Mutant | -10/Materials Mutant | -10/Mines Mutant | -10/Exiles Hauler-Mutant | -9/Mines Resources | -11 -10 -10 -10 -9 ----------- Run | Yrd Mat Min Exi Min Matter Collected 410 | 252 78 . . 80 Remotely . | . . . . . Salvage Created 435 | . 262 59 . 114 Parts 24 | . 11 7 . 6 Haulers Intercepted 1 | . 1 . . . Recyclers Shooed . | . . . . . Parts Field Recycled . | . . . . . Retrieved Matter . | . . . . . Parts Self-Destructed . | . . . . . Prevented . | . . . . . Kills | -11 -10 -10 -10 -9 ------- Run | Yrd Mat Min Exi Min Combat Hostiles Destroyed 13 | . 6 3 . 4 Guns 10 | . 5 3 . 2 Cannons 1 | . . . . 1 Classes Destroyed 7 | . 4 . . 3 Tunneler 1 | . . . . 1 Hauler 1 | . 1 . . . Watcher 1 | . 1 . . . Swarmer 6 | . 3 3 . . Grunt 3 | . 3 . . . Duelist 1 | . . . . 1 Assembled 3 | . . . . 3 Best Kill Streak 3 | . 3 3 . 3 Combat Bots Only 3 | . 3 3 . 3 Max Kills in Single Turn 1 | . 1 1 . 1 Gunslinging . | . . . . . Exploded . | . . . . . Melee . | . . . . . Uniques/NPCs Destroyed . | . . . . . Combat | -11 -10 -10 -10 -9 -------- Run | Yrd Mat Min Exi Min Hostile Shots Fired 79 | . 27 19 . 33 Missed 13 | . 3 5 . 5 Damage Taken 778 | . 229 135 . 414 Core 182 | . 37 66 . 79 Absorbed by Shields . | . . . . . Core Remaining (%) 100 | 100 . . . . Volleys Fired 46 | . 27 9 . 10 Largest 2 | . 2 2 . 2 Hottest 100 | . 100 100 . 100 Shots Fired 92 | . 54 18 . 20 Gun 90 | . 54 18 . 18 Cannon 2 | . . . . 2 Launcher . | . . . . . Special . | . . . . . Kinetic 2 | . . . . 2 Thermal 90 | . 54 18 . 18 Explosive . | . . . . . Electromagnetic . | . . . . . Robot Hit Streak 8 | . 7 4 . 8 Robot Miss Streak 5 | . 5 3 . 2 Penetration Max . | . . . . . Secondary Targets 4 | . 1 1 . 2 Max Gunslinging Chain 1 | . 1 1 . 1 Shots Hit Robots 58 | . 31 11 . 16 Core Hits 22 | . 12 4 . 6 Critical Kills . | . . . . . Critical Parts Destroyed . | . . . . . Critical Strikes 11 | . 4 3 . 4 Burn 10 | . 4 3 . 3 Blast 1 | . . . . 1 Melee Attacks . | . . . . . Impact . | . . . . . Slashing . | . . . . . Piercing . | . . . . . Sneak Attacks . | . . . . . Combat Hostiles . | . . . . . Follow-up Attacks . | . . . . . Damage Inflicted 740 | . 378 140 . 222 Guns 703 | . 378 140 . 185 Cannons 37 | . . . . 37 Explosions . | . . . . . Melee . | . . . . . Ramming . | . . . . . Kinetic 37 | . . . . 37 Thermal 703 | . 378 140 . 185 Explosive . | . . . . . Electromagnetic . | . . . . . Impact . | . . . . . Slashing . | . . . . . Piercing . | . . . . . Highest Corruption 1 | . . . . 1 Average Corruption 1 | . . . . 1 Corruption Purged . | . . . . . Corruption Blocked . | . . . . . Overload Shots . | . . . . . Overflow Damage . | . . . . . Projectiles . | . . . . . Explosions . | . . . . . Melee . | . . . . . Knockbacks 1 | . . . . 1 Impact . | . . . . . Kinetic 1 | . . . . 1 Secondary . | . . . . . Self-Inflicted Damage . | . . . . . Shots . | . . . . . Rammed . | . . . . . Targets Rammed . | . . . . . Kicked . | . . . . . Crushed . | . . . . . Highest Temperature 352 | . 234 288 . 352 Average Temperature 103 | . 80 126 . 156 Received Heat Transfer 236 | . 78 18 . 140 Effects 1 | . . 1 . . Energy Bleed 1 | . . 1 . . Siege Activations . | . . . . . Robots Corrupted . | . . . . . Combat Hostiles . | . . . . . Parts Fried . | . . . . . Impact Corruptions . | . . . . . Robots Melted 1 | . 1 . . . Combat Hostiles 1 | . 1 . . . Parts Melted 9 | . 7 . . 2 Heat Transferred 2765 | . 1359 629 . 777 Parts Sabotaged . | . . . . . Parts Stolen . | . . . . . Parts Stripped . | . . . . . Power Chain Reactions . | . . . . . Alert | -11 -10 -10 -10 -9 ------- Run | Yrd Mat Min Exi Min Peak Influence 179 | . 179 85 . 35 Initial . | . . . . . Average 36 | . 52 23 . 14 Maximum Alert Level . | . . . . . Low Security (%) 100 | 100 100 100 . 100 Level 1 . | . . . . . Level 2 . | . . . . . Level 3 . | . . . . . Level 4 . | . . . . . Level 5 . | . . . . . High Security . | . . . . . Max Security . | . . . . . Squads Dispatched 3 | . 3 . . . Investigation 1 | . 1 . . . Extermination . | . . . . . Reinforcement 2 | . 2 . . . Assault . | . . . . . Garrison . | . . . . . Intercept . | . . . . . Searches Triggered . | . . . . . Construction Impeded . | . . . . . Haulers Reinforced . | . . . . . Active Scanning Responses . | . . . . . Cargo Convoy Interrupts . | . . . . . Stealth | -11 -10 -10 -10 -9 --------- Run | Yrd Mat Min Exi Min Distress Signals 2 | . 2 . . . Communications Jammed . | . . . . . Distress Signals . | . . . . . Times Spotted 25 | . 9 6 . 10 Peak Tracking Total 9 | . 3 3 . 9 Tactical Retreats 1 | . . 1 . . Traps | -11 -10 -10 -10 -9 ------- Run | Yrd Mat Min Exi Min Traps Triggered 1 | . 1 . . . Indirectly . | . . . . . Trap Hack Attempts . | . . . . . Triggered . | . . . . . Disarmed . | . . . . . Reprogrammed . | . . . . . Reused . | . . . . . Traps Extracted . | . . . . . Installed . | . . . . . Triggered . | . . . . . Machines | -11 -10 -10 -10 -9 ---------- Run | Yrd Mat Min Exi Min Machines Disabled . | . . . . . Max in Single Turn . | . . . . . Machines Repaired . | . . . . . Machines Dismantled . | . . . . . Machines Sabotaged . | . . . . . Overloaded Fab Kills . | . . . . . Hacking | -11 -10 -10 -10 -9 --------- Run | Yrd Mat Min Exi Min Machines Accessed 2 | . 2 . . . Terminals 2 | . 2 . . . Fabricators . | . . . . . Repair Stations . | . . . . . Recycling Units . | . . . . . Scanalyzers . | . . . . . Garrison Access . | . . . . . Total Hacks 12 | . 12 . . . Successful 8 | . 8 . . . Failed 4 | . 4 . . . Catastrophic . | . . . . . Database Lockouts . | . . . . . Manual 1 | . . . 1 . Terminals 12 | . 12 . . . Fabricators . | . . . . . Repair Stations . | . . . . . Recycling Units . | . . . . . Scanalyzers . | . . . . . Garrison Access . | . . . . . Terminal Hacks 8 | . 8 . . . Record 3 | . 3 . . . Prototype ID Bank 2 | . 2 . . . Emergency Access Points 1 | . 1 . . . Terminal Index 1 | . 1 . . . Unreport Threat 1 | . 1 . . . Fabricator Hacks . | . . . . . Repair Station Hacks . | . . . . . Recycling Unit Hacks . | . . . . . Scanalyzer . | . . . . . Garrison Access Hacks . | . . . . . Unauthorized Hacks . | . . . . . Terminals . | . . . . . Fabricators . | . . . . . Repair Stations . | . . . . . Recycling Units . | . . . . . Scanalyzers . | . . . . . Garrison Access . | . . . . . Data Cores Recovered . | . . . . . Used . | . . . . . Hacking Detections 1 | . 1 . . . Full Trace Events . | . . . . . Feedback Events . | . . . . . Feedback Blocked . | . . . . . Robot Schematics Acquired . | . . . . . Robots Built . | . . . . . Authchips . | . . . . . Time . | . . . . . Total Robot Build Rating . | . . . . . Part Schematics Acquired . | . . . . . Parts Built . | . . . . . Authchips . | . . . . . Time . | . . . . . Total Part Build Rating . | . . . . . Parts Repaired . | . . . . . Time . | . . . . . Parts Recycled . | . . . . . Recycled Matter . | . . . . . Retrieved Matter . | . . . . . Retrieved Components . | . . . . . Parts Scanalyzed . | . . . . . Part Schematics Acquired . | . . . . . Parts Damaged . | . . . . . Bothacking | -11 -10 -10 -10 -9 ------------ Run | Yrd Mat Min Exi Min Used RIF Installer . | . . . . . Robots Hacked . | . . . . . Non-combat . | . . . . . Combat . | . . . . . Robot Hacks Applied . | . . . . . Relay Couplers Released . | . . . . . Fabnet Peak Effective % . | . . . . . Robots Rewired . | . . . . . Allies Hacked . | . . . . . Hacks Repelled . | . . . . . Allies | -11 -10 -10 -10 -9 -------- Run | Yrd Mat Min Exi Min Total Allies 1 | . . 1 . . Largest Group 1 | . . 1 . . Highest-Rated Group 31 | . . 31 . . Highest-Rated Ally 31 | . . 31 . . Total Orders . | . . . . . Ally Attacks . | . . . . . Total Damage . | . . . . . Kills . | . . . . . Allies Corrupted . | . . . . . Allies Melted . | . . . . . Intel | -11 -10 -10 -10 -9 ------- Run | Yrd Mat Min Exi Min Robot Analysis Total . | . . . . . Derelict Logs Recovered 2 | . . 2 . . Drone Launches . | . . . . . Drone Recoveries . | . . . . . Exploration | -11 -10 -10 -10 -9 ------------- Run | Yrd Mat Min Exi Min Turns Passed 2078 | 86 848 350 518 276 Spaces Moved 1668 | 42 725 271 501 129 Core 42 | 42 . . . . Treads . | . . . . . Legs . | . . . . . Wheels 1626 | . 725 271 501 129 Hover . | . . . . . Flight . | . . . . . Fastest Speed 50 | 50 100 100 100 100 Average Speed 106 | 188 100 100 100 160 Slowest Speed 250 | 250 115 100 100 190 Overloaded Moves . | . . . . . Propulsion Burnouts . | . . . . . Robots Hopped . | . . . . . Cave-ins Triggered . | . . . . . Exploration Rate (%) 53 | 4 95 52 92 24 Regions Visited 4 Branch Regions 3 Pre-discovered Areas . | . . . . . Known Exits Taken . | . . . . . Unknown Exits Taken 4 | 1 1 1 1 . Scrap Searched . | . . . . . Spaces Dug . | . . . . . Terrain Destroyed . | . . . . . Melee . | . . . . . Projectile . | . . . . . AOE . | . . . . . Terrain Rammed . | . . . . . Walls Destroyed . | . . . . . Machines Disabled . | . . . . . Actions | -11 -10 -10 -10 -9 --------- Run | Yrd Mat Min Exi Min Total 1872 | 47 796 332 518 179 Wait 78 | . 17 50 . 11 Move 1664 | 41 724 270 500 129 Hop . | . . . . . Pick Up 44 | . 13 3 5 23 Fast Attach 9 | 6 1 . 1 1 Attach 1 | . . . 1 . Detach . | . . . . . Swap 12 | . 6 . 4 2 Drop 18 | . 8 . 7 3 Fire 46 | . 27 9 . 10 Melee . | . . . . . Ram . | . . . . . Kick . | . . . . . Crush . | . . . . . Escape Stasis . | . . . . . Rewire . | . . . . . Trap . | . . . . . Miscellaneous . | . . . . . Route ------- -11/Scrapyard -10/Materials (discovered 6 exits: [*Mat x3] / [*Min x2] / [*Sub]) -10/Mines (discovered 3 exits: [*Mat x2] / *Exi) -10/Exiles (discovered 2 exits: [*Min x2]) -9/Mines History --------- Turn | Location | Event 32 | -11/Scrapyard | Discovered new exit (range 14) 87 | -11/Scrapyard | Entered Materials 210 | -10/Materials | Met 8R-AWN 246 | -10/Materials | Discovered new exit (range 10) 321 | -10/Materials | Build established: Mutant 334 | -10/Materials | Discovered new exit (range 16) 519 | -10/Materials | Discovered new exit (range 16) 714 | -10/Materials | Discovered new exit (range 6) 795 | -10/Materials | Discovered new exit (range 11) 834 | -10/Materials | Discovered new exit (range 6) 935 | -10/Materials | Entered Mines 938 | -10/Mines | Followed 8R-AWN into the Mines 976 | -10/Mines | Discovered new exit (range 11) 1207 | -10/Mines | Received a Rocket Launcher from a helpful Derelict 1212 | -10/Mines | Learned 8 Materials zone layouts 1213 | -10/Mines | Discovered new exit (range 14) 1250 | -10/Mines | Escorted by a lone wolf Derelict 1277 | -10/Mines | Discovered new exit (range 5) 1285 | -10/Mines | Entered Exiles 1285 | -10/Exiles | Accompanied by 1 ally 1300 | -10/Exiles | Discovered new exit (range 15) 1326 | -10/Exiles | Welcomed by 8R-AWN 1345 | -10/Exiles | Met EX-HEX 1373 | -10/Exiles | Met EX-BIN 1386 | -10/Exiles | Aligned with FarCom system 1387 | -10/Exiles | Given EX-Vault access code 1410 | -10/Exiles | Opened EX-Vault 1425 | -10/Exiles | Found Prototype Energy Cannon 1425 | -10/Exiles | Identified Gui. Plasma Cannon 1434 | -10/Exiles | Found Prototype Processor 1435 | -10/Exiles | Identified 0b10 Alert Chip 1444 | -10/Exiles | Found Prototype Ballistic Gun 1465 | -10/Exiles | Warned to stay clear of 0b10 Research branches 1492 | -10/Exiles | Met EX-DEC 1533 | -10/Exiles | Visited The Gauntlet 1789 | -10/Exiles | Discovered new exit (range 11) 1803 | -10/Exiles | Stole two prototypes: Gui. Plasma Cannon, XL Autogun Array 1803 | -10/Exiles | Entered Mines 1829 | -9/Mines | Joined a pair of Derelicts in attacking an 0b10 outpost 2045 | -9/Mines | Assembled infested the area 2050 | -9/Mines | Assisted by a Guerilla fighting off Assembled 2066 | -9/Mines | Core integrity fell below 50% 2079 | -9/Mines | Self-destructed Last Messages --------------- 02013_ K-01 Serf collects debris. 02045_ ALERT: Infestation in the mines, dispatching Demolisher response squad. 02046_ K-01 Serf collects debris. 02050_ A derelict emerges from the shadows: "You need to get out of here! I've been tracking a group of Assembled to figure out where they're coming from, and they're closing on this area, come on!" 02058_ as-53034 destroyed. 02058_ Switching to secondary target: as-99871. 02067_ as-67624 destroyed. 02067_ Switching to secondary target: as-99871. 02072_ as-93143 suffers critical hit (Burn). 02072_ as-93143 knocked back. 02075_ as-73811 suffers critical hit (Blast). 02075_ as-73811 destroyed. 02076_ Com. Wheel destroyed. 02076_ System corrupted by crushing effect (+1). 02076_ Knocked back. 02077_ Med. Laser destroyed. 02077_ Com. Wheel destroyed. Map ----- +----------------------------------------------------+ | | | | | | | ?????????????????????????????????????????????????? | | ?????????????????????????????????????????????????? | | ?????????????????????????????????????????????????? | | ?????????????????????????????????????????????????? | | ?????????????????????????????????????????????????? | | ?????????????????????????????????????????????????? | | ?????????????????????????????????????????????????? | | ?????????????????????????????????????????????????? | | ???????????????????????????????????????########### | | ???????????????????????????????????????# | | ?????????????????????????????????####### ! | | ????????????????????????????????##" ## | | ????????????????????????????????#"" #! | | ????????????????????????????????#! + | | ????????????????????????????????# + | | ????????????????????????????????#"" *# | | ????????????????????????????????##"%## | | ?????????????????????????????????####### | | ????????????????????????#####??????????# | | ????????????????????????a a%#??????????# | | ????????????????????????#aa #??????????# | | ???????????????????????##a #???????????# | | ??????????????????????## @ #???????????########## | | ??????????????????????# #????????????????????# | | ??????????????????????# ##??????????####?????# | | ??????????????????????# ##????????## ##????# | | ??????????????????????## ##??????## ###### | | ???????????????????????# #?????## !% = | | ???????????????????????## ####### ! | | ????????????????????????## *#### # | | ?????????????????????????### =% =% %#??# # | | ???????????????????????????# # ## = #??# # | | ???????????????????????????# ##?# % ##??# # | | ???????????????????????????#####??## % ###???# # | | ???????????????????????????????????## ####?????# # | | ????????????????????????????????????# #????????# | | ????????????????????????????????????# #???????? | | ????????????????????????????????????#%#???????? | | ???????????????????????????????????? ???????? | | ???????????????????????????????????? ???????? # | | ???????????????????????????????????? ???????? ? | | ??????????????????????????????????? #??????? ? | | ??????????????????????????????????? #??????? ? | | ??????????????????????????????????? ???????? ? | | ??????????????????????????????????? #??????????? | | ?????????????????????????????????? ##???????????? | | ??????????????????????????????????#??????????????? | +----------------------------------------------------+ Best States ------------- Heat Dissipation 39 Energy Generation 12 Energy Capacity 265 Matter Stores 300 Matter Capacity 300 Sight Range 16 Terrain Scan Density 10 Armor Coverage 150 Evasion (%) 50 Item Schematics ----------------- None Robot Schematics ------------------ None Fabricated ------------ Nothing Alien Tech Used ----------------- None Achievements -------------- None Challenges ------------ None Game ------ Seed ActiveBackupSabre Manual? 0 Play Time 00:19:17 Cumulative 202.9 hours Start 2024.03.24 @ 15:04:30 End 2024.03.24 @ 15:21:18 Sessions 1 Manual Loads 0 Difficulty Rogue Special Mode None Game No. 154 Rogue 142 Adventurer 12 Explorer 0 Win Type - Total 1 Types 1/0/0/0/0/0/0/0/0 Lore% 27 Gallery% 44 Achievement% 32 Wizard Run 0 Options --------- Layout 1 ASCII 0 Keyboard 0 Movement Mouse Keybinds 0 Fullscreen 1 Font 32/SmallcapsGlow Map View 77x35 Zoom Use 0% Tactical HUD 1 Map Filters NONE Filters NONE Steam 1 RUN: b227a0ad-1cf4-495c-a700-f28383732ee3